fUST/lending_fUST_20240217
["ID","MTS","AMOUNT","RATE_DAILY","PERIOD"]
[314304094,1708167032683,-971.39401,0.0001999,2]
[314304095,1708167032693,-971.39401,0.0001999,2]
[314304096,1708167032702,-13609.83,0.0001999,3]
[314304097,1708167032711,-5600.32221229,0.0002,2]
[314304230,1708167041586,-155.00620025,0.00018577,2]
[314304232,1708167041597,-846.07962055,0.0002,2]
[314304365,1708167046352,-14560.22198728,0.0002,2]
[314304366,1708167046408,-5168.0970999,0.0002,2]
[314304382,1708167266412,1135.92,0.0002104,15]
[314304404,1708168232580,-155.01550155,0.00019022,2]
[314304405,1708168232589,-861.95155653,0.00019023,2]
[314304438,1708168238641,-3292.80375933,0.00019023,2]
[314304986,1708168244547,-2247.15591249,0.00019023,2]
[314304989,1708168244560,-3632.75022644,0.00019023,2]
[314304991,1708168244571,-1033.58,0.00019023,2]
[314304996,1708168244608,-644.33507808,0.00019023,2]
[314305329,1708168320962,280.0,0.0002197,7]
[314305330,1708168549573,186.20851382,0.0003187,120]
[314305335,1708168620959,280.0,0.00021956,7]
[314305361,1708168921702,280.0,0.00021956,7]
[314305377,1708169431732,-295.07125183,0.00018796,2]
[314305379,1708169431742,-155.01550155,0.00018797,2]
[314305380,1708169431752,-88.43068307,0.00018911,2]
[314305383,1708169431764,-2439.24079509,0.00018911,2]
[314305385,1708169431774,-24900.0,0.00019343,2]
[314305387,1708169431784,-2996.0,0.00019998,2]
[314305389,1708169431793,-239.63447746,0.0002,2]
[314305391,1708169431802,-155.0,0.00020072,2]
[314305393,1708169431811,-200.0,0.00020309,2]
[314305395,1708169431820,-3928.51469118,0.00020567,2]
[314305397,1708169431829,-151.0,0.00020711,2]
[314305399,1708169431839,-151.0,0.00020711,2]
[314305400,1708169431848,-11770.79,0.00020711,3]
[314305401,1708169431857,-9808.99,0.00020711,3]
[314305402,1708169431866,-41743.39175996,0.00020721,2]
[314305403,1708169431879,-2561.08695129,0.00020721,2]
[314305404,1708169431890,-618.09274011,0.00020721,2]
[314305405,1708169431902,-13243.73362001,0.00020721,2]
[314305425,1708169437773,-1046.10127469,0.00020721,2]
[314305427,1708169437786,-789.8357,0.00020721,2]
[314305433,1708169437831,-869.87277449,0.00020721,2]
[314305436,1708169437843,-556.84961509,0.00020721,2]
[314305768,1708169441046,-1241.20195306,0.00020721,2]
[314305770,1708169441058,-1146.41181735,0.00020721,2]
[314305776,1708169441103,-2949.18298934,0.00020721,2]
[314305779,1708169441115,-424.50572672,0.00020721,2]
[314305782,1708169441124,-1979.13994201,0.00020722,2]
[314305785,1708169441141,-2782.4,0.00020722,2]
[314305948,1708169442725,-921.79253314,0.00020722,2]
[314309014,1708169520619,200.0,0.00021757,7]
[314309053,1708170631905,-3426.98924477,0.00019584,2]
[314309054,1708170631917,-752.56125151,0.00019584,2]
[314309245,1708170641177,-973.56437885,0.00019584,2]
[314309364,1708171393170,151.52575832,0.00016368,2]
[314309366,1708171473387,285710.17047682,0.00016368,2]
[314309367,1708171489387,285710.17047682,0.00016368,2]
[314309368,1708171511389,285710.17047682,0.00016368,2]
[314309372,1708171527388,142717.96281122,0.00016368,2]
[314309373,1708171527427,142992.2076656,0.00016368,2]
[314309374,1708171545394,32256.98203957,0.00016368,2]
[314309375,1708171545427,9000.0,0.00016368,2]
[314309377,1708171570885,151.52575832,0.00016286,2]
[314309378,1708171613747,-9874.0,0.00016368,2]
[314309382,1708171750026,236.72522645,0.00016286,2]
[314309402,1708171832190,-60483.45191476,0.00016368,2]
[314309570,1708171841411,-6267.48621553,0.00016368,2]
[314309572,1708171841423,-3606.27720025,0.00016368,2]
[314309751,1708171843128,-801.56513905,0.00016368,2]
[314310054,1708171846249,-848.91083595,0.00016368,2]
[314310061,1708171846307,-908.21571175,0.00016368,2]
[314310105,1708171919478,-1739.0,0.00016368,2]
[314310108,1708172306046,351.2108096,0.00016199,2]
[314310113,1708172369298,1383.5742485,0.00016199,2]
[314310114,1708172370765,4915.3898828,0.00016199,2]
[314310115,1708172423794,1961.57407433,0.00015981,2]
[314310116,1708172423823,9000.0,0.00015981,2]
[314310117,1708172423853,9000.0,0.00015981,2]
[314310118,1708172423883,4938.42592567,0.00015981,2]
[314310121,1708172917373,4061.57407433,0.00015559,2]
[314310122,1708172917403,9000.0,0.00015559,2]
[314310123,1708172917432,9000.0,0.00015559,2]
[314310124,1708172917460,2838.42592567,0.00015559,2]
[314310145,1708173032352,-6086.1898846,0.00015823,2]
[314310146,1708173032362,-878.00957342,0.00016274,2]
[314310147,1708173032371,-155.01550155,0.00016275,2]
[314310148,1708173032380,-160.868304,0.00016283,2]
[314310150,1708173032390,-129426.64628805,0.00016368,2]
[314310152,1708173032400,-1648.85737202,0.00016795,2]
[314310154,1708173032409,-1456.8751199,0.00016895,2]
[314310156,1708173032418,-250.0,0.00016934,2]
[314310158,1708173032427,-968.047339,0.00017011,2]
[314310160,1708173032436,-200.0,0.00017185,2]
[314310162,1708173032445,-1561.96739782,0.00017776,2]
[314310164,1708173032457,-86.88997417,0.00017776,2]
[314310166,1708173032467,-1648.85737199,0.00018758,2]
[314310168,1708173032477,-1639.13940734,0.000189,2]
[314310170,1708173032487,-280.0,0.00018904,2]
[314310172,1708173032496,-169.192561,0.00019178,2]
[314310174,1708173032505,-1257.47453406,0.00019739,2]
[314310338,1708173041577,-391.38283793,0.00019739,2]
[314310339,1708173041587,-4902.91477291,0.0002,2]
[314310340,1708173041599,-2055.63028256,0.0002,2]
[314310341,1708173041611,-790.922957,0.0002,2]
[314310408,1708173046321,-812.04125896,0.0002,2]
[314310412,1708173384121,1000.0,0.00022,22]
[314310413,1708174012675,20000.0,0.000165,5]
[314310414,1708174023094,280.0,0.00021174,7]
[314310415,1708174030631,10558.5550425,0.000165,5]
[314310436,1708174232544,-258.28277517,0.00018332,2]
[314310437,1708174232554,-24900.0,0.00018333,2]
[314310438,1708174232564,-160.868304,0.00018386,2]
[314310439,1708174232577,-605.249735,0.00018486,2]
[314310440,1708174232587,-154.90705577,0.000188,2]
[314310441,1708174232596,-1092.7596049,0.000189,2]
[314310442,1708174232605,-169.192561,0.00019178,2]
[314310443,1708174232615,-200.0,0.00019249,2]
[314310444,1708174232624,-395.24362927,0.0001979,2]
[314310445,1708174232633,-68563.60165328,0.000199,2]
[314310446,1708174232643,-1389.28,0.000199,2]
[314310447,1708174232653,-1319.83,0.000199,2]
[314310448,1708174232662,-2639.66,0.000199,2]
[314310449,1708174232672,-659.91,0.000199,2]
[314310450,1708174232681,-694.64,0.0001999,2]
[314310451,1708174232690,-1319.82,0.0001999,2]
[314310452,1708174232699,-329.96,0.0001999,2]
[314310453,1708174232708,-152.44462016,0.0002,2]
[314310454,1708174232718,-151.0,0.0002,2]
[314310455,1708174232727,-395.24362925,0.00020023,2]
[314310456,1708174232736,-395.24362925,0.00020256,2]
[314310457,1708174232745,-395.24362925,0.00020489,2]
[314310458,1708174232754,-395.24362925,0.00020722,2]
[314310459,1708174232763,-221.50474582,0.0002082,2]
[314310460,1708174232772,-202.6366303,0.0002082,2]
[314310461,1708174232782,-294.82619206,0.0002082,2]
[314310462,1708174232791,-585.33971561,0.0002082,2]
[314310463,1708174232801,-190.98005247,0.0002082,2]
[314310464,1708174232811,-2486.95030322,0.00020821,2]
[314310465,1708174232820,-651.85158696,0.00020821,2]
[314310466,1708174232829,-7767.7227794,0.00020821,2]
[314310666,1708174241905,-8094.0688265,0.00020811,3]
[314310681,1708174243482,-2036.63901888,0.00020811,3]
[314310682,1708174246689,-719.79,0.00020811,3]
[314310787,1708175432694,-162.02108506,0.000175,2]
[314310789,1708175432703,-147.59196125,0.00017599,2]
[314310806,1708175438767,-536.41732279,0.00017499,2]
[314310807,1708175438777,-155.63024536,0.000176,2]
[314310809,1708175438786,-482.5091811,0.00017681,2]
[314310810,1708175438795,-1854.4402167,0.00017852,2]
[314310811,1708175438805,-800.48226183,0.00017973,2]
[314310813,1708175438816,-1003.7393826,0.00017973,2]
[314310815,1708175438827,-4870.87618952,0.00017973,2]
[314310817,1708175438838,-18224.90216605,0.00017973,2]
[314310819,1708175438847,-727.159431,0.00018369,2]
[314310821,1708175438856,-157.14305003,0.00018752,2]
[314310823,1708175438865,-200.0,0.00018871,2]
[314310825,1708175438874,-1095.09343902,0.000189,2]
[314310827,1708175438883,-295.0,0.0001898,2]
[314310829,1708175438892,-1589.31384727,0.00019,2]
[314310831,1708175438903,-26111.43,0.00019583,3]
[314310833,1708175438912,-21759.53,0.00019583,3]
[314310835,1708175438922,-67190.26692211,0.00019593,2]
[314310837,1708175438931,-151.545041,0.00019593,2]
[314310839,1708175438940,-151.0,0.00019593,2]
[314310841,1708175438952,-151.0,0.00019593,2]
[314310843,1708175438962,-501.489041,0.00019593,2]
[314310845,1708175438970,-501.489041,0.00019593,2]
[314310847,1708175438980,-824.92,0.00019595,3]
[314310849,1708175438990,-274.96,0.00019606,3]
[314310851,1708175439000,-215.09805329,0.00019898,2]
[314310853,1708175439009,-482.48389667,0.00019899,2]
[314310855,1708175439019,-248855.89286804,0.000199,2]
[314310857,1708175439028,-151.0,0.000199,2]
[314310859,1708175439038,-151.0,0.000199,2]
[314310862,1708175439047,-151.0,0.000199,2]
[314310863,1708175439056,-501.489041,0.000199,2]
[314310865,1708175439065,-501.489041,0.000199,2]
[314310867,1708175439075,-189.97024141,0.0002,2]
[314310870,1708175439084,-280.0,0.00020758,2]
[314310872,1708175439093,-301.52368075,0.0002082,2]
[314310874,1708175439102,-652.1152959,0.0002082,2]
[314310876,1708175439111,-500.0,0.00020822,2]
[314310878,1708175439120,-500.0,0.00020822,2]
[314310880,1708175439130,-500.0,0.00020822,2]
[314310882,1708175439138,-500.0,0.00020822,2]
[314310883,1708175439147,-500.0,0.00020822,2]
[314310884,1708175439158,-500.0,0.00020822,2]
[314310886,1708175439167,-500.0,0.00020822,2]
[314310888,1708175439176,-500.0,0.00020822,2]
[314310890,1708175439185,-500.0,0.00020822,2]
[314310892,1708175439194,-500.0,0.00020822,2]
[314310894,1708175439203,-500.0,0.00020822,2]
[314310896,1708175439213,-500.0,0.00020822,2]
[314310898,1708175439222,-500.0,0.00020822,2]
[314310900,1708175439231,-500.0,0.00020822,2]
[314310902,1708175439240,-500.0,0.00020822,2]
[314310904,1708175439250,-500.0,0.00020822,2]
[314310906,1708175439259,-500.0,0.00020822,2]
[314310908,1708175439268,-500.0,0.00020822,2]
[314310909,1708175439277,-500.0,0.00020822,2]
[314310911,1708175439286,-500.0,0.00020822,2]
[314310913,1708175439295,-500.0,0.00020822,2]
[314310915,1708175439304,-450.0,0.00020822,2]
[314310917,1708175439313,-500.0,0.00020822,2]
[314310919,1708175439322,-500.0,0.00020822,2]
[314310921,1708175439331,-500.0,0.00020822,2]
[314310923,1708175439340,-500.0,0.00020822,2]
[314310925,1708175439348,-500.0,0.00020822,2]
[314310927,1708175439357,-500.0,0.00020822,2]
[314310929,1708175439366,-500.0,0.00020822,2]
[314310931,1708175439375,-500.0,0.00020822,2]
[314310933,1708175439385,-500.0,0.00020822,2]
[314310935,1708175439394,-500.0,0.00020822,2]
[314310937,1708175439406,-359.93856883,0.00020822,2]
[314310939,1708175439415,-500.0,0.00020822,2]
[314310941,1708175439423,-500.0,0.00020822,2]
[314310942,1708175439432,-416.33684309,0.00020822,2]
[314310944,1708175439441,-500.0,0.00020822,2]
[314310946,1708175439450,-500.0,0.00020822,2]
[314310948,1708175439459,-500.0,0.00020822,2]
[314310950,1708175439468,-500.0,0.00020822,2]
[314310952,1708175439477,-500.0,0.00020822,2]
[314310954,1708175439486,-450.0,0.00020822,2]
[314310956,1708175439495,-500.0,0.00020822,2]
[314310958,1708175439504,-500.0,0.00020822,2]
[314310960,1708175439513,-500.0,0.00020822,2]
[314310962,1708175439522,-500.0,0.00020822,2]
[314310964,1708175439531,-500.0,0.00020822,2]
[314310966,1708175439540,-500.0,0.00020822,2]
[314310968,1708175439549,-500.0,0.00020822,2]
[314310970,1708175439559,-500.0,0.00020822,2]
[314310972,1708175439568,-500.0,0.00020822,2]
[314310974,1708175439578,-500.0,0.00020822,2]
[314310986,1708175439671,-650.0,0.00020822,2]
[314310988,1708175439682,-500.0,0.00020822,2]
[314310990,1708175439692,-500.0,0.00020822,2]
[314310992,1708175439701,-176.54188729,0.00020822,2]
[314310994,1708175439710,-500.0,0.00020822,2]
[314310996,1708175439719,-500.0,0.00020822,2]
[314310998,1708175439728,-500.0,0.00020822,2]
[314311000,1708175439737,-500.0,0.00020822,2]
[314311002,1708175439746,-500.0,0.00020822,2]
[314311004,1708175439755,-500.0,0.00020822,2]
[314311005,1708175439764,-500.0,0.00020822,2]
[314311008,1708175439773,-500.0,0.00020822,2]
[314311009,1708175439782,-500.0,0.00020822,2]
[314311011,1708175439791,-500.0,0.00020822,2]
[314311013,1708175439800,-483.55910295,0.00020822,2]
[314311016,1708175439810,-500.0,0.00020822,2]
[314311017,1708175439819,-500.0,0.00020822,2]
[314311019,1708175439828,-500.0,0.00020822,2]
[314311021,1708175439837,-500.0,0.00020822,2]
[314311023,1708175439846,-500.0,0.00020822,2]
[314311025,1708175439856,-500.0,0.00020822,2]
[314311027,1708175439865,-500.0,0.00020822,2]
[314311029,1708175439875,-500.0,0.00020822,2]
[314311031,1708175439885,-500.0,0.00020822,2]
[314311033,1708175439895,-500.0,0.00020822,2]
[314311036,1708175439907,-500.0,0.00020822,2]
[314311037,1708175439916,-500.0,0.00020822,2]
[314311039,1708175439926,-500.0,0.00020822,2]
[314311041,1708175439935,-500.0,0.00020822,2]
[314311044,1708175439947,-500.0,0.00020822,2]
[314311046,1708175439957,-500.0,0.00020822,2]
[314311048,1708175439966,-355.58045578,0.00020822,2]
[314311050,1708175439975,-500.0,0.00020822,2]
[314311051,1708175439984,-500.0,0.00020822,2]
[314311053,1708175439994,-500.0,0.00020822,2]
[314311055,1708175440003,-500.0,0.00020822,2]
[314311057,1708175440013,-500.0,0.00020822,2]
[314311060,1708175440022,-500.0,0.00020822,2]
[314311061,1708175440031,-500.0,0.00020822,2]
[314311063,1708175440040,-500.0,0.00020822,2]
[314311066,1708175440050,-500.0,0.00020822,2]
[314311067,1708175440058,-500.0,0.00020822,2]
[314311069,1708175440067,-500.0,0.00020822,2]
[314311071,1708175440077,-500.0,0.00020822,2]
[314311073,1708175440085,-500.0,0.00020822,2]
[314311075,1708175440094,-500.0,0.00020822,2]
[314311077,1708175440103,-500.0,0.00020822,2]
[314311079,1708175440112,-500.0,0.00020822,2]
[314311081,1708175440121,-500.0,0.00020822,2]
[314311083,1708175440130,-500.0,0.00020822,2]
[314311085,1708175440140,-500.0,0.00020822,2]
[314311087,1708175440150,-500.0,0.00020822,2]
[314311089,1708175440159,-500.0,0.00020822,2]
[314311091,1708175440169,-500.0,0.00020822,2]
[314311094,1708175440179,-500.0,0.00020822,2]
[314311096,1708175440188,-500.0,0.00020822,2]
[314311098,1708175440197,-500.0,0.00020822,2]
[314311100,1708175440206,-500.0,0.00020822,2]
[314311101,1708175440215,-500.0,0.00020822,2]
[314311104,1708175440224,-500.0,0.00020822,2]
[314311106,1708175440234,-500.0,0.00020822,2]
[314311107,1708175440243,-500.0,0.00020822,2]
[314311110,1708175440253,-500.0,0.00020822,2]
[314311112,1708175440262,-500.0,0.00020822,2]
[314311113,1708175440271,-500.0,0.00020822,2]
[314311115,1708175440280,-500.0,0.00020822,2]
[314311117,1708175440290,-500.0,0.00020822,2]
[314311119,1708175440299,-500.0,0.00020822,2]
[314311121,1708175440308,-500.0,0.00020822,2]
[314311123,1708175440317,-152.76932582,0.00020822,2]
[314311126,1708175440326,-500.0,0.00020822,2]
[314311127,1708175440336,-500.0,0.00020822,2]
[314311129,1708175440345,-500.0,0.00020822,2]
[314311131,1708175440354,-500.0,0.00020822,2]
[314311133,1708175440363,-323.19080547,0.00020822,2]
[314311135,1708175440372,-500.0,0.00020822,2]
[314311138,1708175440382,-500.0,0.00020822,2]
[314311139,1708175440391,-500.0,0.00020822,2]
[314311142,1708175440402,-500.0,0.00020822,2]
[314311143,1708175440411,-500.0,0.00020822,2]
[314311145,1708175440420,-500.0,0.00020822,2]
[314311147,1708175440428,-500.0,0.00020822,2]
[314311149,1708175440437,-500.0,0.00020822,2]
[314311151,1708175440446,-500.0,0.00020822,2]
[314311154,1708175440455,-500.0,0.00020822,2]
[314311156,1708175440465,-500.0,0.00020822,2]
[314311157,1708175440474,-500.0,0.00020822,2]
[314311160,1708175440483,-500.0,0.00020822,2]
[314311161,1708175440492,-500.0,0.00020822,2]
[314311163,1708175440502,-500.0,0.00020822,2]
[314311166,1708175440512,-500.0,0.00020822,2]
[314311168,1708175440521,-500.0,0.00020822,2]
[314311170,1708175440530,-500.0,0.00020822,2]
[314311172,1708175440539,-500.0,0.00020822,2]
[314311174,1708175440548,-500.0,0.00020822,2]
[314311175,1708175440558,-500.0,0.00020822,2]
[314311177,1708175440567,-500.0,0.00020822,2]
[314311179,1708175440576,-500.0,0.00020822,2]
[314311181,1708175440585,-500.0,0.00020822,2]
[314311183,1708175440595,-500.0,0.00020822,2]
[314311185,1708175440603,-500.0,0.00020822,2]
[314311187,1708175440613,-500.0,0.00020822,2]
[314311189,1708175440622,-500.0,0.00020822,2]
[314311191,1708175440631,-500.0,0.00020822,2]
[314311193,1708175440640,-500.0,0.00020822,2]
[314311195,1708175440649,-500.0,0.00020822,2]
[314311197,1708175440659,-500.0,0.00020822,2]
[314311199,1708175440668,-500.0,0.00020822,2]
[314311201,1708175440678,-500.0,0.00020822,2]
[314311203,1708175440687,-500.0,0.00020822,2]
[314311205,1708175440697,-500.0,0.00020822,2]
[314311207,1708175440707,-500.0,0.00020822,2]
[314311209,1708175440717,-500.0,0.00020822,2]
[314311211,1708175440726,-500.0,0.00020822,2]
[314311213,1708175440735,-500.0,0.00020822,2]
[314311215,1708175440744,-500.0,0.00020822,2]
[314311217,1708175440753,-500.0,0.00020822,2]
[314311219,1708175440762,-500.0,0.00020822,2]
[314311221,1708175440771,-500.0,0.00020822,2]
[314311223,1708175440780,-500.0,0.00020822,2]
[314311225,1708175440790,-628.87968748,0.00020822,2]
[314311227,1708175440799,-500.0,0.00020822,2]
[314311229,1708175440810,-500.0,0.00020822,2]
[314311231,1708175440819,-500.0,0.00020822,2]
[314311233,1708175440828,-500.0,0.00020822,2]
[314311235,1708175440837,-500.0,0.00020822,2]
[314311237,1708175440847,-500.0,0.00020822,2]
[314311239,1708175440856,-500.0,0.00020822,2]
[314311242,1708175440864,-500.0,0.00020822,2]
[314311244,1708175440874,-500.0,0.00020822,2]
[314311246,1708175440883,-500.0,0.00020822,2]
[314311248,1708175440892,-500.0,0.00020822,2]
[314311249,1708175440902,-500.0,0.00020822,2]
[314311250,1708175440911,-500.0,0.00020822,2]
[314311251,1708175440920,-500.0,0.00020822,2]
[314311252,1708175440929,-500.0,0.00020822,2]
[314311253,1708175440938,-666.61800837,0.00020822,2]
[314311254,1708175440951,-500.0,0.00020822,2]
[314311255,1708175440960,-500.0,0.00020822,2]
[314311256,1708175440968,-500.0,0.00020822,2]
[314311257,1708175440977,-500.0,0.00020822,2]
[314311258,1708175440986,-384.37847406,0.00020822,2]
[314311259,1708175440995,-500.0,0.00020822,2]
[314311260,1708175441004,-666.61800837,0.00020822,2]
[314311262,1708175441013,-500.0,0.00020822,2]
[314311264,1708175441023,-500.0,0.00020822,2]
[314311266,1708175441032,-500.0,0.00020822,2]
[314311268,1708175441040,-666.61800837,0.00020822,2]
[314311270,1708175441050,-500.0,0.00020822,2]
[314311272,1708175441060,-500.0,0.00020822,2]
[314311274,1708175441069,-500.0,0.00020822,2]
[314311276,1708175441078,-666.61800837,0.00020822,2]
[314311278,1708175441087,-500.0,0.00020822,2]
[314311280,1708175441096,-500.0,0.00020822,2]
[314311282,1708175441105,-500.0,0.00020822,2]
[314311284,1708175441115,-666.61800837,0.00020822,2]
[314311286,1708175441124,-500.0,0.00020822,2]
[314311288,1708175441133,-666.61800837,0.00020822,2]
[314311290,1708175441142,-500.0,0.00020822,2]
[314311292,1708175441152,-500.0,0.00020822,2]
[314311294,1708175441161,-500.0,0.00020822,2]
[314311296,1708175441170,-500.0,0.00020822,2]
[314311298,1708175441179,-666.61800837,0.00020822,2]
[314311300,1708175441188,-500.0,0.00020822,2]
[314311302,1708175441197,-500.0,0.00020822,2]
[314311304,1708175441206,-500.0,0.00020822,2]
[314311306,1708175441216,-500.0,0.00020822,2]
[314311308,1708175441225,-500.0,0.00020822,2]
[314311310,1708175441234,-666.61800837,0.00020822,2]
[314311312,1708175441243,-500.0,0.00020822,2]
[314311314,1708175441252,-500.0,0.00020822,2]
[314311316,1708175441261,-400.0,0.00020822,2]
[314311318,1708175441270,-666.61800837,0.00020822,2]
[314311320,1708175441280,-500.0,0.00020822,2]
[314311322,1708175441288,-500.0,0.00020822,2]
[314311331,1708175441362,-500.0,0.00020822,2]
[314311333,1708175441372,-500.0,0.00020822,2]
[314311335,1708175441381,-666.61800837,0.00020822,2]
[314311337,1708175441390,-500.0,0.00020822,2]
[314311339,1708175441399,-500.0,0.00020822,2]
[314311341,1708175441409,-500.0,0.00020822,2]
[314311343,1708175441418,-666.61800837,0.00020822,2]
[314311345,1708175441427,-500.0,0.00020822,2]
[314311347,1708175441436,-500.0,0.00020822,2]
[314311349,1708175441444,-500.0,0.00020822,2]
[314311351,1708175441453,-500.0,0.00020822,2]
[314311353,1708175441462,-500.0,0.00020822,2]
[314311355,1708175441470,-666.61800837,0.00020822,2]
[314311357,1708175441479,-500.0,0.00020822,2]
[314311359,1708175441488,-500.0,0.00020822,2]
[314311361,1708175441497,-500.0,0.00020822,2]
[314311363,1708175441506,-500.0,0.00020822,2]
[314311365,1708175441515,-500.0,0.00020822,2]
[314311367,1708175441524,-500.0,0.00020822,2]
[314311369,1708175441533,-500.0,0.00020822,2]
[314311371,1708175441542,-666.61800837,0.00020822,2]
[314311373,1708175441551,-666.61800837,0.00020822,2]
[314311375,1708175441561,-666.61800837,0.00020822,2]
[314311377,1708175441569,-500.0,0.00020822,2]
[314311379,1708175441578,-500.0,0.00020822,2]
[314311381,1708175441587,-500.0,0.00020822,2]
[314311383,1708175441596,-666.61800837,0.00020822,2]
[314311385,1708175441605,-500.0,0.00020822,2]
[314311387,1708175441616,-500.0,0.00020822,2]
[314311389,1708175441625,-666.61800837,0.00020822,2]
[314311391,1708175441634,-500.0,0.00020822,2]
[314311393,1708175441643,-172.35563438,0.00020822,2]
[314311395,1708175441653,-666.61800837,0.00020822,2]
[314311397,1708175441662,-500.0,0.00020822,2]
[314311399,1708175441671,-500.0,0.00020822,2]
[314311401,1708175441681,-666.61800837,0.00020822,2]
[314311403,1708175441690,-500.0,0.00020822,2]
[314311405,1708175441699,-500.0,0.00020822,2]
[314311407,1708175441709,-500.0,0.00020822,2]
[314311409,1708175441718,-500.0,0.00020822,2]
[314311411,1708175441727,-500.0,0.00020822,2]
[314311413,1708175441736,-666.61800837,0.00020822,2]
[314311415,1708175441745,-500.0,0.00020822,2]
[314311417,1708175441754,-500.0,0.00020822,2]
[314311418,1708175441764,-666.61800837,0.00020822,2]
[314311420,1708175441772,-500.0,0.00020822,2]
[314311422,1708175441781,-500.0,0.00020822,2]
[314311424,1708175441790,-666.61800837,0.00020822,2]
[314311427,1708175441799,-500.0,0.00020822,2]
[314311429,1708175441808,-666.61800837,0.00020822,2]
[314311430,1708175441819,-500.0,0.00020822,2]
[314311432,1708175441828,-500.0,0.00020822,2]
[314311434,1708175441837,-666.61800837,0.00020822,2]
[314311437,1708175441848,-666.61800837,0.00020822,2]
[314311438,1708175441869,-500.0,0.00020822,2]
[314311441,1708175441894,-327.27448196,0.00020822,2]
[314311443,1708175441929,-666.61800837,0.00020822,2]
[314311445,1708175441956,-500.0,0.00020822,2]
[314311447,1708175441977,-666.61800837,0.00020822,2]
[314311449,1708175441997,-238.83645044,0.00020822,2]
[314311451,1708175442012,-666.61800837,0.00020822,2]
[314311453,1708175442022,-500.0,0.00020822,2]
[314311455,1708175442031,-666.61800837,0.00020822,2]
[314311457,1708175442039,-500.0,0.00020822,2]
[314311459,1708175442048,-666.61800837,0.00020822,2]
[314311461,1708175442057,-666.61800837,0.00020822,2]
[314311463,1708175442067,-500.0,0.00020822,2]
[314311465,1708175442075,-666.61800837,0.00020822,2]
[314311467,1708175442085,-500.0,0.00020822,2]
[314311469,1708175442094,-666.61800837,0.00020822,2]
[314311471,1708175442103,-500.0,0.00020822,2]
[314311473,1708175442111,-666.61800837,0.00020822,2]
[314311475,1708175442121,-500.0,0.00020822,2]
[314311477,1708175442131,-666.61800837,0.00020822,2]
[314311479,1708175442140,-666.61800837,0.00020822,2]
[314311481,1708175442149,-666.61800837,0.00020822,2]
[314311483,1708175442159,-500.0,0.00020822,2]
[314311485,1708175442168,-666.61800837,0.00020822,2]
[314311487,1708175442177,-500.0,0.00020822,2]
[314311489,1708175442187,-666.61800837,0.00020822,2]
[314311491,1708175442198,-500.0,0.00020822,2]
[314311493,1708175442212,-666.61800837,0.00020822,2]
[314311496,1708175442226,-666.61800837,0.00020822,2]
[314311498,1708175442239,-666.61800837,0.00020822,2]
[314311500,1708175442250,-500.0,0.00020822,2]
[314311503,1708175442261,-666.61800837,0.00020822,2]
[314311505,1708175442274,-666.61800837,0.00020822,2]
[314311508,1708175442287,-666.61800837,0.00020822,2]
[314311510,1708175442300,-500.0,0.00020822,2]
[314311512,1708175442312,-666.61800837,0.00020822,2]
[314311515,1708175442325,-666.61800837,0.00020822,2]
[314311517,1708175442336,-666.61800837,0.00020822,2]
[314311519,1708175442346,-666.61800837,0.00020822,2]